Cogmind - Beta 15 @@@ ROGUE MODE // 2025.05.09 @ 20:10:36 // Winter2019/RPGLIKE Player: moonlol Result: Destroyed by Y-45 Defender with Beam Rifle Performance ------------- Evolutions (1) 500 Regions Visited (2) 400 Robots Destroyed (23) 115 Value Destroyed (718) 718 Prototype IDs (0) 0 Alien Tech Used (0) 0 Bonus (0) 0 TOTAL SCORE: 1733 Bonus ------- None Cogmind --------- Core Integrity 0/600 Matter 295/300 Energy 137/160 System Corruption 0% Temperature Cool (63) Movement Treading (160) Location -9/Materials Parts ------- > --- POWER (1) -------- Light Nuclear Core > --- PROPULSION (3) --- Light Treads Light Treads Wheel > --- UTILITY (2) ------ Improved Heat Sink > --- WEAPON (2) ------- Medium Laser Beam Rifle > --- INVENTORY (2) ---- Rocket Launcher Peak State ------------ > --- POWER ------------ Light Nuclear Core > --- PROPULSION ------- Light Treads Light Treads Wheel > --- UTILITY ---------- Improved Heat Sink > --- WEAPON ----------- Beam Rifle Beam Rifle > --- INVENTORY -------- (None) [Rating: 13] Favorites ----------- Power Light Ion Engine Engine Light Ion Engine Power Core Light Nuclear Core Propulsion Light Treads Treads Light Treads Leg Aluminum Leg Wheel Wheel Utility Improved Heat Sink Device Improved Heat Sink Processor Signal Interpreter Protection Light Armor Plating Weapon Beam Rifle Energy Gun Beam Rifle Ballistic Gun Light Assault Rifle Ballistic Cannon Light Cannon Build | -11 -10 -9 ------- Run | Yrd Mat Mat Slots Evolved 4 | 3 . 1 Power . | . . . Propulsion 2 | 2 . . Utility 1 | . . 1 Weapon 1 | 1 . . Parts Attached 18 | 7 8 3 Power 2 | 1 1 . Engine 1 | 1 . . Core 1 | . 1 . Reactor . | . . . Propulsion 5 | 4 1 . Treads 3 | 2 1 . Leg 1 | 1 . . Wheel 1 | 1 . . Hover . | . . . Flight . | . . . Utility 5 | . 3 2 Device 3 | . 3 . Storage . | . . . Processor 1 | . . 1 Hackware . | . . . Protection 1 | . . 1 Artifact . | . . . Weapon 6 | 2 3 1 Energy Gun 4 | 1 2 1 Energy Cannon . | . . . Ballistic Gun 1 | 1 . . Ballistic Cannon 1 | . 1 . Launcher . | . . . Special Weapon . | . . . Impact Weapon . | . . . Slashing Weapon . | . . . Piercing Weapon . | . . . Special Melee Weapon . | . . . Unidentified Prototypes . | . . . Parts Lost 1 | . . 1 Power . | . . . Propulsion . | . . . Utility 1 | . . 1 Weapon . | . . . Highest Loss Streak 1 | . . 1 To Critical Strikes . | . . . Average Backups . | . . . Power . | . . . Propulsion . | . . . Utility . | . . . Weapon . | . . . Tool/Special . | . . . Unused Backups 1 | . . 1 Power . | . . . Propulsion . | . . . Utility . | . . . Weapon 1 | . . 1 Tool/Special . | . . . Average Slot Usage (%) 97 | . 98 97 Engine 6 | . 9 . Core 6 | . 4 12 Treads 27 | . 28 25 Wheel 13 | . 14 12 Device 10 | . 12 6 Processor 1 | . . 5 Protection 2 | . . 8 Energy Gun 19 | . 20 18 Ballistic Gun 4 | . 5 . Ballistic Cannon 3 | . 2 6 Peak Build Rating 13 | 6 13 13 Average Rating 9 | 4 9 11 On Entrance 6 | . 6 12 Naked Turns . | . . . Heaviest Build 15 | 6 12 15 Greatest Support 40 | 40 20 10 Greatest Overweight (x) 1 | . 1 1 Average Overweight (x) . | . . 1 Largest Inventory Capacity 2 | . . 2 Average Capacity . | . . 1 Most Carried 2 | . . 2 Average Carried . | . . . Final Capacity 2 | . . 2 Final Carried 1 | . . 1 Class Distribution -------------------- 92% | Mutant 7% | Scavenger-Mutant Dominant Class ---------------- Mutant | -10/Materials Mutant | -9/Materials Resources | -11 -10 -9 ----------- Run | Yrd Mat Mat Matter Collected 496 | 127 287 82 Remotely . | . . . Salvage Created 909 | . 609 300 Parts 51 | . 41 10 Haulers Intercepted 1 | . 1 . Recyclers Shooed 1 | . . 1 Parts Field Recycled . | . . . Retrieved Matter . | . . . Parts Self-Destructed . | . . . Prevented . | . . . Kills | -11 -10 -9 ------- Run | Yrd Mat Mat Combat Hostiles Destroyed 19 | . 13 6 Guns 17 | . 12 5 Cannons 1 | . . 1 Classes Destroyed 6 | . 5 1 Hauler 1 | . 1 . Operator 1 | . 1 . Watcher 2 | . 1 1 Swarmer 3 | . 3 . Grunt 14 | . 10 4 Sentry 2 | . . 2 Best Kill Streak 3 | . 2 3 Combat Bots Only 3 | . 2 3 Max Kills in Single Turn 2 | . 2 2 Gunslinging 1 | . 1 1 Exploded . | . . . Melee . | . . . Uniques/NPCs Destroyed . | . . . Combat | -11 -10 -9 -------- Run | Yrd Mat Mat Hostile Shots Fired 128 | . 76 52 Missed 30 | . 19 11 Hits 98 | . 57 41 Projectile 98 | . 57 41 Critical Strikes 2 | . 1 1 Damage Taken 1208 | . 664 544 Core 913 | . 535 378 Absorbed by Shields . | . . . Redirected to Core 751 | . 416 335 Core Remaining (%) 80 | 100 61 . Volleys Fired 86 | . 52 34 Largest 2 | . 2 2 Hottest 112 | . 112 106 Shots Fired 169 | . 104 65 Gun 155 | . 103 52 Cannon 14 | . 1 13 Launcher . | . . . Special . | . . . Kinetic 41 | . 28 13 Thermal 101 | . 49 52 Explosive . | . . . Electromagnetic 27 | . 27 . Robot Hit Streak 14 | . 7 14 Robot Miss Streak 4 | . 4 2 Penetration Max . | . . . Secondary Targets 3 | . 1 2 Max Gunslinging Chain 1 | . 1 1 Shots Hit Robots 97 | . 55 42 Core Hits 42 | . 28 14 Critical Kills . | . . . Critical Parts Destroyed . | . . . Critical Strikes 5 | . 3 2 Burn 3 | . 2 1 Blast 1 | . . 1 Corrupt 1 | . 1 . Melee Attacks . | . . . Impact . | . . . Slashing . | . . . Piercing . | . . . Sneak Attacks . | . . . Combat Hostiles . | . . . Follow-up Attacks . | . . . Damage Inflicted 1383 | . 786 597 Guns 1248 | . 736 512 Cannons 103 | . 18 85 Explosions 32 | . 32 . Melee . | . . . Ramming . | . . . Kinetic 208 | . 123 85 Thermal 922 | . 410 512 Explosive . | . . . Electromagnetic 253 | . 253 . Impact . | . . . Slashing . | . . . Piercing . | . . . Highest Corruption . | . . . Average Corruption . | . . . Corruption Purged . | . . . Corruption Blocked . | . . . Overload Shots . | . . . Overflow Damage . | . . . Projectiles . | . . . Explosions . | . . . Melee . | . . . Knockbacks . | . . . Impact . | . . . Kinetic . | . . . Secondary . | . . . Self-Inflicted Damage 18 | . 18 . Shots 1 | . 1 . Rammed . | . . . Targets Rammed . | . . . Kicked . | . . . Crushed . | . . . Highest Temperature 386 | . 386 385 Average Temperature 124 | . 115 136 Received Heat Transfer 558 | . 303 255 Effects 8 | . 4 4 Shutdowns 2 | . 1 1 Energy Bleed 2 | . . 2 Interference 3 | . 2 1 Matter Decay 1 | . 1 . Siege Activations . | . . . Martial Activations . | . . . Shielding Activations . | . . . Robots Disrupted . | . . . Combat Hostiles . | . . . Robots Corrupted . | . . . Combat Hostiles . | . . . Parts Fried . | . . . Impact Corruptions . | . . . Robots Melted 1 | . 1 . Combat Hostiles 1 | . 1 . Parts Melted 4 | . 1 3 Heat Transferred 2640 | . 1160 1480 Parts Sabotaged . | . . . Parts Stolen . | . . . Parts Stripped . | . . . Power Chain Reactions 1 | . 1 . Alert | -11 -10 -9 ------- Run | Yrd Mat Mat Maximum Alert Level 1 | . 1 . Low Security (%) 90 | 100 85 100 Level 1 9 | . 14 . Level 2 . | . . . Level 3 . | . . . Level 4 . | . . . Level 5 . | . . . High Security . | . . . Max Security . | . . . Peak Influence 234 | . 234 114 Initial 66 | . . 66 Average 110 | . 144 47 Influence Increases 657 | . 469 188 Destroy 0b10 Robot/C 380 | . 260 120 Destroy 0b10 Robot/NC 20 | . 15 5 Destroy Leader 96 | . 64 32 Successful Hack 35 | . 35 . Disable Machine 30 | . . 30 Destroy Structure 6 | . 5 1 Lose Combat Pursuer 90 | . 90 . Influence Decreases 573 | . 312 261 Entered New Map 91 | . . 91 Time Decay 472 | . 312 160 Lost Part 10 | . . 10 Squads Dispatched 3 | . 3 . Investigation 1 | . 1 . Extermination . | . . . Reinforcement 2 | . 2 . Assault . | . . . Garrison . | . . . Intercept . | . . . Searches Triggered . | . . . Construction Impeded . | . . . Haulers Reinforced . | . . . Active Scanning Responses . | . . . Cargo Convoy Interrupts . | . . . Stealth | -11 -10 -9 --------- Run | Yrd Mat Mat Distress Signals 4 | . 3 1 Communications Jammed . | . . . Distress Signals . | . . . Times Spotted 39 | . 26 13 Peak Tracking Total 5 | . 4 5 Tactical Retreats 5 | . 5 . Traps | -11 -10 -9 ------- Run | Yrd Mat Mat Traps Triggered 1 | . 1 . Indirectly . | . . . Trap Hack Attempts . | . . . Triggered . | . . . Disarmed . | . . . Reprogrammed . | . . . Reused . | . . . Traps Extracted . | . . . Installed . | . . . Triggered . | . . . Machines | -11 -10 -9 ---------- Run | Yrd Mat Mat Machines Disabled 2 | . . 2 Max in Single Turn 1 | . . 1 Machines Repaired . | . . . Machines Dismantled . | . . . Machines Sabotaged . | . . . Overloaded Fab Kills . | . . . Hacking | -11 -10 -9 --------- Run | Yrd Mat Mat Machines Accessed 7 | . 6 1 Terminals 7 | . 6 1 Fabricators . | . . . Repair Stations . | . . . Recycling Units . | . . . Scanalyzers . | . . . Garrison Access . | . . . Total Hacks 18 | . 16 2 Successful 8 | . 8 . Failed 10 | . 8 2 Catastrophic . | . . . Database Lockouts . | . . . Manual 18 | . 16 2 Terminals 18 | . 16 2 Fabricators . | . . . Repair Stations . | . . . Recycling Units . | . . . Scanalyzers . | . . . Garrison Access . | . . . Terminal Hacks 1 | . 1 . Terminal Index 1 | . 1 . Fabricator Hacks . | . . . Repair Station Hacks . | . . . Recycling Unit Hacks . | . . . Scanalyzer . | . . . Garrison Access Hacks . | . . . Unauthorized Hacks 7 | . 7 . Terminals 7 | . 7 . Track 1 | . 1 . Disrupt 1 | . 1 . Skim 5 | . 5 . Fabricators . | . . . Repair Stations . | . . . Recycling Units . | . . . Scanalyzers . | . . . Garrison Access . | . . . Data Cores Recovered . | . . . Used . | . . . Hacking Detections 6 | . 5 1 Full Trace Events . | . . . Feedback Events . | . . . Feedback Blocked . | . . . Robot Schematics Acquired . | . . . Robots Built . | . . . Authchips . | . . . Time . | . . . Total Robot Build Rating . | . . . Part Schematics Acquired . | . . . Parts Built . | . . . Authchips . | . . . Time . | . . . Total Part Build Rating . | . . . Parts Repaired . | . . . Time . | . . . Parts Recycled . | . . . Recycled Matter . | . . . Retrieved Matter . | . . . Retrieved Components . | . . . Parts Scanalyzed . | . . . Part Schematics Acquired . | . . . Parts Damaged . | . . . Bothacking | -11 -10 -9 ------------ Run | Yrd Mat Mat Used RIF Installer . | . . . Robots Hacked . | . . . Non-combat . | . . . Combat . | . . . Robot Hacks Applied . | . . . Relay Couplers Released . | . . . Fabnet Peak Effective % . | . . . Robots Rewired . | . . . Allies Hacked . | . . . Hacks Repelled . | . . . Allies | -11 -10 -9 -------- Run | Yrd Mat Mat Total Allies . | . . . Largest Group . | . . . Highest-Rated Group . | . . . Highest-Rated Ally . | . . . Total Orders . | . . . Ally Attacks . | . . . Total Damage . | . . . Kills . | . . . Allies Corrupted . | . . . Allies Melted . | . . . Intel | -11 -10 -9 ------- Run | Yrd Mat Mat Active Infowar (turns) . | . . . Robot Analysis Total . | . . . Derelict Logs Recovered . | . . . Drone Launches . | . . . Drone Recoveries . | . . . Exploration | -11 -10 -9 ------------- Run | Yrd Mat Mat Turns Passed 1151 | 59 772 320 Spaces Moved 717 | 49 471 197 Core 5 | 5 . . Treads 12 | 6 6 . Legs 10 | 10 . . Wheels 690 | 28 465 197 Hover . | . . . Flight . | . . . Fastest Speed 50 | 50 80 95 Average Speed 88 | 94 85 95 Slowest Speed 160 | 160 160 95 Overloaded Moves . | . . . Propulsion Burnouts . | . . . Robots Hopped . | . . . Potential Cave-ins . | . . . Cave-ins Triggered . | . . . Exploration Rate (%) 36 | 5 82 22 Regions Visited 2 Branch Regions . Pre-discovered Areas 1 | . 1 . Known Exits Taken 1 | . 1 . Unknown Exits Taken 1 | 1 . . Scrap Searched . | . . . Spaces Dug . | . . . Terrain Destroyed 5 | . 5 . Melee . | . . . Projectile . | . . . AOE 5 | . 5 . Terrain Rammed . | . . . Walls Destroyed . | . . . Machines Disabled . | . . . Actions | -11 -10 -9 --------- Run | Yrd Mat Mat Total 1063 | 58 740 265 Wait 221 | 2 191 28 Move 715 | 48 470 197 Hop . | . . . Pick Up 2 | . . 2 Fast Attach 9 | 7 1 1 Attach . | . . . Detach . | . . . Swap 10 | . 7 3 Drop 5 | 1 4 . Fire 86 | . 52 34 Melee . | . . . Ram . | . . . Kick . | . . . Crush . | . . . Escape Stasis . | . . . Rewire . | . . . Trap . | . . . Miscellaneous 15 | . 15 . Route ------- -11/Scrapyard -10/Materials (discovered 6 exits: *Mat x3 / [*Min x2] / [*Sub]) -9/Materials (discovered 2 exits: Mat / [*Min]) History --------- Turn | Location | Event 19 | -11/Scrapyard | Upgraded with Propulsion slot (x1) 19 | -11/Scrapyard | Upgraded with Weapon slot (x1) 19 | -11/Scrapyard | Upgraded with Propulsion slot (x1) 45 | -11/Scrapyard | Discovered new exit (range 15) 60 | -11/Scrapyard | Entered Materials 238 | -10/Materials | Discovered new exit (range 13) 315 | -10/Materials | Build established: Mutant 315 | -10/Materials | Discovered new exit (range 10) 489 | -10/Materials | Core integrity fell below 50% 584 | -10/Materials | Discovered new exit (range 7) 586 | -10/Materials | Discovered new exit (range 11) 602 | -10/Materials | Reached level 2 736 | -10/Materials | Learned Storage emergency access door positions 765 | -10/Materials | Learned 4 Recycling zone layouts 785 | -10/Materials | Learned Storage terminal intel 789 | -10/Materials | Discovered new exit (range 5) 794 | -10/Materials | Identified exit to Materials 795 | -10/Materials | Learned 2 Mines zone layouts 802 | -10/Materials | Learned location of Subcaves (-10) 820 | -10/Materials | Learned 4 Recycling zone layouts 832 | -10/Materials | Entered another Materials area 833 | -9/Materials | Identified exit to Materials 834 | -9/Materials | Reached level 3 841 | -9/Materials | Upgraded with Utility slot (x1) 894 | -9/Materials | Core integrity fell below 50% 1074 | -9/Materials | Discovered new exit (range 16) 1112 | -9/Materials | Core integrity fell below 20% 1152 | -9/Materials | Destroyed by Y-45 Defender with Beam Rifle Last Messages --------------- 01105_ K-01 Serf collects debris. 01114_ Overheating: Energy bleed (-33). 01123_ Sml. Laser melted. 01123_ Aluminum Leg melted. 01123_ Heat Sink melted. 01123_ G-34 Mercenary destroyed. 01123_ Material Processor disabled. 01123_ R-06 Scavenger collects Heat Sink. 01124_ K-01 Serf collects debris. 01129_ G-34 Mercenary destroyed. 01129_ Switching to secondary target: G-34 Mercenary. 01129_ G-34 Mercenary destroyed. 01129_ K-01 Serf collects debris. 01132_ R-06 Scavenger collects Aluminum Leg. 01135_ K-01 Serf collects debris. 01145_ K-01 Serf cleans the Fusion Modulator. 01146_ Lgt. Armor Plating destroyed. 01147_ R-06 Scavenger collects Aluminum Leg. 01148_ U-05 Engineer builds a Door. 01148_ K-01 Serf cleans the Fusion Modulator. Map ----- +----------------------------------------------------+ | ?????????????????????????????????????????????????? | | ?????????????????????????????????????????????????? | | ?????????????????????????????????????????????????? | | ?????????????????????????????????????????????????? | | ?????????????????????????????????????????????????? | | ?????????????????????????????????????????????????? | | ?????????????????????????????????????????????????? | | ?????????????????????????????????????????????????? | | ?????????????????????????????????????????????????? | | ?????????????????????????????????????????????????? | | ?????????????????????????????????????????????????? | | ???????????????? ??????????????????????????????? | | ?????????????? ??????????????????????????????? | | ?????????????? ?????????????????????????????? | | ??????????????? ?????????????????????????????? | | ??????????????? ?????????????????????????????? | | ???????????????"" ###??????????????????????????? | | ??????????????""" ###########???????????????? | | ?????????????""""" + """ [ ##??????????????? | | ?????????"" ?""""" ## "R" #??????????????? | | ?????????" ? """ ? ## " " ##????? ????????? | | ???????? ? ?## #????? ?????????? | | ???????? ==#Y #??## ??????????# | | ??????? ?# """ #?? # ??????????# | | ??????? %+% """ #? +???????????# | | ??????? ? #@k""" #? ????????????# | | ??????? ?? # k %%#? #????????????# | | ?????????########### %#########+## #??###+#?????? | | ???????????????????# ? #???????# #??# ##### | | ?????????????????? + ? !?????# % #??# | | ???????????????? # # !*!???# #??# " | | ???????????????"" ?# # **! ## #??# | | ??????????????"""??# ?# + #??# #### | | ??????????????""???+ # # #?####+###### | | ???????????????????# #####??# #?# # | | ???????????????????# ???????# #?# # | | ???????????????????# ????????# #?# ] # | | ??????????????????? ???????# #?# # | | ??????????????????? ???###### #?#######+### | | ??????????????????? ???#!! # ####### # | | ???????????????????? < ???#! # #* | | ??????????????????????????# + | | ??????????????????????????# ####### ## | | ??????????????????????????# ]#?????# ## #? | | ??????????????????????????######?????# ########? | | ?????????????????????????????????????# + ??????? | | ?????????????????????????????????????# # ?????? | | ?????????????????????????????????????# # ????? | | ?????????????????????????????????????#####? ???? | | ????????????????????????????????????????????] ?? | +----------------------------------------------------+ Best States ------------- Heat Dissipation 39 Energy Generation 14 Energy Capacity 160 Matter Stores 300 Matter Capacity 300 Sight Range 16 Robot Scan Range 16 Terrain Scan Density 10 Armor Coverage 150 Evasion (%) 45 Recoil Reduction 2 Item Schematics ----------------- None Robot Schematics ------------------ None Fabricated ------------ Nothing Repaired ---------- Nothing Alien Tech Used ----------------- None Achievements -------------- None Challenges ------------ None RPGLIKE | -11 -10 -9 --------- Run | Yrd Mat Mat Levels Raised 2 | . 1 1 XP Earned 7135 | 3000 1735 2400 XP Spent 5650 | 1800 1100 2750 Upgrades 17 | 3 8 6 Propulsion Slot 2 | 2 . . Utility Slot 1 | . . 1 Weapon Slot 1 | 1 . . Inventory Capacity 2 | . . 2 Sensor Range 8 | . 8 . Ranged Accuracy 3 | . . 3 Protomatter Created 157 | . 118 39 Integrity Restored 323 | . 323 . Core 303 | . 303 . Parts 20 | . 20 . Protomatter Decayed 9 | . 9 . Game ------ Seed GunBackupFacilitator Manual? 0 Play Time 00:11:20 Cumulative 105.4 hours Start 2025.05.09 @ 20:01:53 End 2025.05.09 @ 20:10:36 Sessions 1 Manual Loads 0 Difficulty Rogue Special Mode Winter2019/RPGLIKE Game No. 131 Rogue 83 Adventurer 47 Explorer 1 Win Type - Total 10 Types 7/0/0/1/0/0/2/0/0/0 Lore% 60 Gallery% 56 Achievement% 63 Wizard Run 0 Options --------- Layout 0 ASCII 0 Keyboard 1 Movement Numpad Keybinds 0 Fullscreen 2 Font 18/SmallcapsGlow Map View 76x50 Zoom Use 0% Tactical HUD 1 Map Filters NONE Filters NONE Steam 1 RUN: e1afca1e-51f0-4b00-a637-d175cd1ae790